[Event "Titled Tuesday Blitz May 4 2021"]
[White "Klimkowski, Jan"]
[Black "Chernomordik, Pavel"]
[WhiteFideId "21856222"]
[BlackFideId "2804530"]
[WhiteElo "1903"]
[BlackElo "2299"]
[Result "1-0"]
[Round "08"]
[TimeControl "180+1"]
[Date "2021.05.04"]
[WhiteClock "0:01:53"]
[BlackClock "0:00:45"]

1. e4 {[%clk 0:03:00]}  g6 {[%clk 0:03:00]} 2. Nf3 {[%clk 0:03:00]}  Bg7 {[%clk 0:03:01]} 3. d4 {[%clk 0:03:00]}  d6 {[%clk 0:03:00]} 4. Nc3 {[%clk 0:03:00]}  a6 {[%clk 0:03:00]} 5. a4 {[%clk 0:03:00]}  b6 {[%clk 0:03:00]} 6. Be3 {[%clk 0:02:58]}  Bb7 {[%clk 0:02:59]} 7. Qd2 {[%clk 0:02:59]}  Nd7 {[%clk 0:02:59]} 8. O-O-O {[%clk 0:02:58]}  b5 {[%clk 0:02:55]} 9. Kb1 {[%clk 0:02:54]}  b4 {[%clk 0:02:49]} 10. Nd5 {[%clk 0:02:54]}  a5 {[%clk 0:02:46]} 11. Bc4 {[%clk 0:02:42]}  e6 {[%clk 0:02:39]} 12. Bg5 {[%clk 0:02:35]}  Qb8 {[%clk 0:02:34]} 13. Nf4 {[%clk 0:02:34]}  Nf8 {[%clk 0:02:14]} 14. d5 {[%clk 0:02:30]}  Qc8 {[%clk 0:02:07]} 15. Bb5+ {[%clk 0:02:26]}  c6 {[%clk 0:02:02]} 16. dxc6 {[%clk 0:02:26]}  Bxc6 {[%clk 0:02:02]} 17. Qxd6 {[%clk 0:02:26]}  Bxb5 {[%clk 0:01:55]} 18. axb5 {[%clk 0:02:27]}  f6 {[%clk 0:01:53]} 19. Nd4 {[%clk 0:02:19]}  fxg5 {[%clk 0:01:36]} 20. Nfxe6 {[%clk 0:02:19]}  Nxe6 {[%clk 0:01:31]} 21. Nxe6 {[%clk 0:02:18]}  Ra7 {[%clk 0:01:30]} 22. b6 {[%clk 0:02:13]}  Re7 {[%clk 0:01:27]} 23. Nxg7+ {[%clk 0:02:05]}  Rxg7 {[%clk 0:01:26]} 24. b7 {[%clk 0:01:59]}  Rxb7 {[%clk 0:01:14]} 25. Qe5+ {[%clk 0:01:59]}  Re7 {[%clk 0:01:09]} 26. Qxh8 {[%clk 0:01:58]}  Kf8 {[%clk 0:01:08]} 27. Rd3 {[%clk 0:01:54]}  Rf7 {[%clk 0:01:00]} 28. Rhd1 {[%clk 0:01:53]}  Ke7 {[%clk 0:00:48]} 29. Rd8 {[%clk 0:01:52]}  Qxd8 {[%clk 0:00:45]} 30. Rxd8 {[%clk 0:01:53]} 1-0


[Site "https://www.chess.com"]

[Event "Titled Tuesday Blitz May 4 2021"]
[White "Kollars, Dmitrij"]
[Black "Preotu, Razvan"]
[WhiteFideId "12909572"]
[BlackFideId "2613280"]
[WhiteElo "2576"]
[BlackElo "2407"]
[Result "1-0"]
[Round "08"]
[TimeControl "180+1"]
[Date "2021.05.04"]
[WhiteClock "0:00:23"]
[BlackClock "0:00:03"]

1. Nf3 {[%clk 0:03:00]}  c5 {[%clk 0:02:59]} 2. e4 {[%clk 0:02:58]}  d6 {[%clk 0:02:59]} 3. Bb5+ {[%clk 0:02:57]}  Nd7 {[%clk 0:02:59]} 4. O-O {[%clk 0:02:57]}  a6 {[%clk 0:02:59]} 5. Bd3 {[%clk 0:02:58]}  Ngf6 {[%clk 0:02:58]} 6. Re1 {[%clk 0:02:58]}  e6 {[%clk 0:02:58]} 7. c3 {[%clk 0:02:58]}  b5 {[%clk 0:02:58]} 8. Bc2 {[%clk 0:02:58]}  c4 {[%clk 0:02:57]} 9. a4 {[%clk 0:02:59]}  Bb7 {[%clk 0:02:57]} 10. d4 {[%clk 0:03:00]}  cxd3 {[%clk 0:02:57]} 11. Qxd3 {[%clk 0:03:00]}  Nc5 {[%clk 0:02:56]} 12. Qe2 {[%clk 0:03:00]}  bxa4 {[%clk 0:02:56]} 13. Be3 {[%clk 0:03:01]}  Nfd7 {[%clk 0:02:53]} 14. Bxc5 {[%clk 0:02:47]}  Nxc5 {[%clk 0:02:53]} 15. Rxa4 {[%clk 0:02:47]}  Nxa4 {[%clk 0:02:35]} 16. Bxa4+ {[%clk 0:02:48]}  Ke7 {[%clk 0:02:36]} 17. e5 {[%clk 0:02:49]}  Qa5 {[%clk 0:01:43]} 18. exd6+ {[%clk 0:02:47]}  Kd8 {[%clk 0:01:43]} 19. Ne5 {[%clk 0:02:46]}  Qxa4 {[%clk 0:01:09]} 20. Nxf7+ {[%clk 0:02:45]}  Kc8 {[%clk 0:01:10]} 21. Qxe6+ {[%clk 0:02:44]}  Qd7 {[%clk 0:01:10]} 22. Qc4+ {[%clk 0:02:36]}  Kb8 {[%clk 0:01:10]} 23. Nxh8 {[%clk 0:02:30]}  Bxd6 {[%clk 0:01:10]} 24. Qe6 {[%clk 0:01:56]}  Qxe6 {[%clk 0:00:53]} 25. Rxe6 {[%clk 0:01:57]}  Kc7 {[%clk 0:00:54]} 26. Nf7 {[%clk 0:01:56]}  Bf8 {[%clk 0:00:46]} 27. Re1 {[%clk 0:01:49]}  Bd5 {[%clk 0:00:41]} 28. Ng5 {[%clk 0:01:49]}  Rb8 {[%clk 0:00:25]} 29. b4 {[%clk 0:01:49]}  h6 {[%clk 0:00:10]} 30. Nf3 {[%clk 0:01:17]}  a5 {[%clk 0:00:09]} 31. bxa5 {[%clk 0:01:16]}  Ra8 {[%clk 0:00:10]} 32. Nd4 {[%clk 0:01:10]}  Rxa5 {[%clk 0:00:06]} 33. Nd2 {[%clk 0:01:11]}  Ra2 {[%clk 0:00:05]} 34. N2f3 {[%clk 0:01:10]}  Kd6 {[%clk 0:00:03]} 35. h4 {[%clk 0:01:06]}  Ra8 {[%clk 0:00:01]} 36. Nf5+ {[%clk 0:01:03]}  Kc5 {[%clk 0:00:02]} 37. Re5 {[%clk 0:00:59]}  Kc6 {[%clk 0:00:02]} 38. N3d4+ {[%clk 0:00:56]}  Kc5 {[%clk 0:00:03]} 39. Ne6+ {[%clk 0:00:50]}  Kc6 {[%clk 0:00:02]} 40. Nxf8 {[%clk 0:00:50]}  Rxf8 {[%clk 0:00:03]} 41. Ne7+ {[%clk 0:00:39]}  Kd6 {[%clk 0:00:03]} 42. Rxd5+ {[%clk 0:00:39]}  Kxe7 {[%clk 0:00:04]} 43. g3 {[%clk 0:00:35]}  Rf3 {[%clk 0:00:03]} 44. c4 {[%clk 0:00:36]}  Rc3 {[%clk 0:00:03]} 45. Rd4 {[%clk 0:00:36]}  Ke6 {[%clk 0:00:03]} 46. h5 {[%clk 0:00:34]}  Ke5 {[%clk 0:00:03]} 47. Rg4 {[%clk 0:00:34]}  Kf6 {[%clk 0:00:02]} 48. Kg2 {[%clk 0:00:33]}  Rc2 {[%clk 0:00:01]} 49. Rg6+ {[%clk 0:00:33]}  Kf7 {[%clk 0:00:01]} 50. Rc6 {[%clk 0:00:33]}  Rc3 {[%clk 0:00:02]} 51. c5 {[%clk 0:00:32]}  Kg8 {[%clk 0:00:01]} 52. g4 {[%clk 0:00:32]}  Kf7 {[%clk 0:00:02]} 53. f3 {[%clk 0:00:32]}  Ke7 {[%clk 0:00:02]} 54. Kg3 {[%clk 0:00:32]}  Kf7 {[%clk 0:00:03]} 55. Rc7+ {[%clk 0:00:32]}  Kf6 {[%clk 0:00:03]} 56. c6 {[%clk 0:00:33]}  Rc4 {[%clk 0:00:03]} 57. Rc8 {[%clk 0:00:33]}  Ke7 {[%clk 0:00:03]} 58. c7 {[%clk 0:00:28]}  Kf7 {[%clk 0:00:01]} 59. f4 {[%clk 0:00:25]}  Rc1 {[%clk 0:00:01]} 60. Kf3 {[%clk 0:00:24]}  Rc2 {[%clk 0:00:01]} 61. Ke3 {[%clk 0:00:24]}  Rc1 {[%clk 0:00:02]} 62. g5 {[%clk 0:00:23]}  hxg5 {[%clk 0:00:02]} 63. fxg5 {[%clk 0:00:24]}  Rc2 {[%clk 0:00:03]} 64. h6 {[%clk 0:00:23]}  gxh6 {[%clk 0:00:03]} 65. gxh6 {[%clk 0:00:24]}  Rc1 {[%clk 0:00:03]} 66. h7 {[%clk 0:00:23]} 1-0


[Site "https://www.chess.com"]

[Event "Titled Tuesday Blitz May 4 2021"]
[White "Kononenko, Dmitry"]
[Black "Garcia Fuentes, Sergio Miguel"]
[WhiteFideId "14113538"]
[BlackFideId "7300549"]
[WhiteElo "2289"]
[BlackElo "2167"]
[Result "1-0"]
[Round "08"]
[TimeControl "180+1"]
[Date "2021.05.04"]
[WhiteClock "0:01:20"]
[BlackClock "0:00:08"]

1. d4 {[%clk 0:03:00]}  d5 {[%clk 0:01:37]} 2. c4 {[%clk 0:02:54]}  c6 {[%clk 0:01:37]} 3. cxd5 {[%clk 0:02:54]}  cxd5 {[%clk 0:01:36]} 4. Bf4 {[%clk 0:02:54]}  Nf6 {[%clk 0:01:35]} 5. e3 {[%clk 0:02:55]}  a6 {[%clk 0:01:32]} 6. Nc3 {[%clk 0:02:55]}  Nc6 {[%clk 0:01:32]} 7. Be2 {[%clk 0:02:53]}  Bf5 {[%clk 0:01:31]} 8. g4 {[%clk 0:02:53]}  Bg6 {[%clk 0:01:22]} 9. h4 {[%clk 0:02:52]}  h6 {[%clk 0:01:13]} 10. Nf3 {[%clk 0:02:47]}  e6 {[%clk 0:01:11]} 11. Ne5 {[%clk 0:02:46]}  Nxe5 {[%clk 0:01:09]} 12. Bxe5 {[%clk 0:02:47]}  Be7 {[%clk 0:01:04]} 13. Rc1 {[%clk 0:02:34]}  Rc8 {[%clk 0:01:03]} 14. Qa4+ {[%clk 0:02:14]}  Kf8 {[%clk 0:01:01]} 15. h5 {[%clk 0:02:09]}  Bh7 {[%clk 0:00:54]} 16. O-O {[%clk 0:02:07]}  Nd7 {[%clk 0:00:51]} 17. Bg3 {[%clk 0:02:04]}  Nb6 {[%clk 0:00:50]} 18. Qb3 {[%clk 0:02:03]}  Rc6 {[%clk 0:00:39]} 19. Na4 {[%clk 0:01:59]}  Nc4 {[%clk 0:00:29]} 20. Qxb7 {[%clk 0:01:50]}  Qe8 {[%clk 0:00:15]} 21. Bxc4 {[%clk 0:01:28]}  Rxc4 {[%clk 0:00:14]} 22. Nb6 {[%clk 0:01:22]}  Rb4 {[%clk 0:00:08]} 23. Rc8 {[%clk 0:01:20]} 1-0


[Site "https://www.chess.com"]

[Event "Titled Tuesday Blitz May 4 2021"]
[White "Kopjonkin, Kirill"]
[Black "Sharapov, Evgeny"]
[WhiteFideId "24140090"]
[BlackFideId "14103133"]
[WhiteElo "2224"]
[BlackElo "2367"]
[Result "1-0"]
[Round "08"]
[TimeControl "180+1"]
[Date "2021.05.04"]
[WhiteClock "0:02:07"]
[BlackClock "0:01:22"]

1. e4 {[%clk 0:03:00]}  c5 {[%clk 0:02:59]} 2. Nf3 {[%clk 0:03:01]}  d6 {[%clk 0:02:59]} 3. d4 {[%clk 0:03:02]}  cxd4 {[%clk 0:02:59]} 4. Nxd4 {[%clk 0:03:02]}  Nf6 {[%clk 0:02:58]} 5. Nc3 {[%clk 0:03:03]}  Nc6 {[%clk 0:02:57]} 6. f3 {[%clk 0:03:03]}  e5 {[%clk 0:02:55]} 7. Nb3 {[%clk 0:03:04]}  Be7 {[%clk 0:02:55]} 8. Be3 {[%clk 0:03:04]}  O-O {[%clk 0:02:54]} 9. Qd2 {[%clk 0:03:05]}  a5 {[%clk 0:02:54]} 10. Bb5 {[%clk 0:03:02]}  Na7 {[%clk 0:02:53]} 11. Be2 {[%clk 0:03:02]}  Be6 {[%clk 0:02:52]} 12. Rd1 {[%clk 0:03:02]}  Nc8 {[%clk 0:02:50]} 13. Qc1 {[%clk 0:03:03]}  Nb6 {[%clk 0:02:36]} 14. Nc5 {[%clk 0:02:55]}  Bc8 {[%clk 0:02:34]} 15. N5a4 {[%clk 0:02:46]}  Nxa4 {[%clk 0:02:33]} 16. Nxa4 {[%clk 0:02:47]}  Nd7 {[%clk 0:02:27]} 17. c4 {[%clk 0:02:46]}  b6 {[%clk 0:02:23]} 18. O-O {[%clk 0:02:45]}  Qc7 {[%clk 0:02:21]} 19. b3 {[%clk 0:02:42]}  Nc5 {[%clk 0:02:21]} 20. Nc3 {[%clk 0:02:42]}  Bb7 {[%clk 0:02:20]} 21. Qb2 {[%clk 0:02:37]}  f5 {[%clk 0:02:18]} 22. exf5 {[%clk 0:02:33]}  Rxf5 {[%clk 0:02:17]} 23. a3 {[%clk 0:02:33]}  Bc6 {[%clk 0:01:57]} 24. Qc2 {[%clk 0:02:29]}  Rff8 {[%clk 0:01:53]} 25. b4 {[%clk 0:02:29]}  axb4 {[%clk 0:01:53]} 26. axb4 {[%clk 0:02:30]}  Na4 {[%clk 0:01:52]} 27. Nd5 {[%clk 0:02:27]}  Bxd5 {[%clk 0:01:49]} 28. Rxd5 {[%clk 0:02:28]}  Rfc8 {[%clk 0:01:29]} 29. Bd3 {[%clk 0:02:26]}  h6 {[%clk 0:01:26]} 30. Ra1 {[%clk 0:02:16]}  Qc6 {[%clk 0:01:26]} 31. b5 {[%clk 0:02:05]}  Qxd5 {[%clk 0:01:24]} 32. cxd5 {[%clk 0:02:06]}  Rxc2 {[%clk 0:01:22]} 33. Bxc2 {[%clk 0:02:07]} 1-0


[Site "https://www.chess.com"]

[Event "Titled Tuesday Blitz May 4 2021"]
[White "Korkmaz, Necmettin"]
[Black "Dudzinski, Pawel"]
[WhiteFideId "6303285"]
[BlackFideId "1117890"]
[WhiteElo "2094"]
[BlackElo "2193"]
[Result "1-0"]
[Round "08"]
[TimeControl "180+1"]
[Date "2021.05.04"]
[WhiteClock "0:01:12"]
[BlackClock "0:00:09"]

1. e4 {[%clk 0:03:00]}  c6 {[%clk 0:02:59]} 2. d4 {[%clk 0:02:59]}  d5 {[%clk 0:03:00]} 3. Nc3 {[%clk 0:02:58]}  dxe4 {[%clk 0:03:00]} 4. Nxe4 {[%clk 0:02:59]}  Nf6 {[%clk 0:03:01]} 5. Nxf6+ {[%clk 0:02:59]}  exf6 {[%clk 0:03:02]} 6. Bc4 {[%clk 0:02:59]}  Bd6 {[%clk 0:03:02]} 7. Qe2+ {[%clk 0:02:59]}  Qe7 {[%clk 0:03:02]} 8. Qxe7+ {[%clk 0:02:59]}  Kxe7 {[%clk 0:03:02]} 9. Ne2 {[%clk 0:03:00]}  Be6 {[%clk 0:03:02]} 10. Bxe6 {[%clk 0:02:59]}  fxe6 {[%clk 0:03:03]} 11. Bf4 {[%clk 0:02:59]}  Nd7 {[%clk 0:02:51]} 12. O-O-O {[%clk 0:02:57]}  Rad8 {[%clk 0:02:24]} 13. Rhe1 {[%clk 0:02:51]}  e5 {[%clk 0:01:59]} 14. Bg3 {[%clk 0:02:50]}  Kf7 {[%clk 0:01:51]} 15. dxe5 {[%clk 0:02:37]}  Bxe5 {[%clk 0:01:44]} 16. f4 {[%clk 0:02:33]}  Bc7 {[%clk 0:01:38]} 17. Nd4 {[%clk 0:02:24]}  Nb6 {[%clk 0:01:07]} 18. f5 {[%clk 0:02:19]}  Bxg3 {[%clk 0:01:05]} 19. hxg3 {[%clk 0:02:19]}  Rd5 {[%clk 0:01:02]} 20. g4 {[%clk 0:02:12]}  Rhd8 {[%clk 0:01:01]} 21. Ne6 {[%clk 0:02:03]}  R8d7 {[%clk 0:00:45]} 22. b3 {[%clk 0:01:56]}  g6 {[%clk 0:00:40]} 23. c4 {[%clk 0:01:56]}  Rxd1+ {[%clk 0:00:31]} 24. Rxd1 {[%clk 0:01:57]}  Rxd1+ {[%clk 0:00:31]} 25. Kxd1 {[%clk 0:01:57]}  Ke7 {[%clk 0:00:25]} 26. Ke2 {[%clk 0:01:55]}  Nd7 {[%clk 0:00:25]} 27. Kf3 {[%clk 0:01:55]}  b6 {[%clk 0:00:16]} 28. Kf4 {[%clk 0:01:52]}  Ne5 {[%clk 0:00:15]} 29. Nd4 {[%clk 0:01:38]}  c5 {[%clk 0:00:12]} 30. Nb5 {[%clk 0:01:36]}  Nd3+ {[%clk 0:00:10]} 31. Ke4 {[%clk 0:01:33]}  Nc1 {[%clk 0:00:11]} 32. Nc3 {[%clk 0:01:28]}  gxf5+ {[%clk 0:00:09]} 33. gxf5 {[%clk 0:01:27]}  Kd6 {[%clk 0:00:09]} 34. Ke3 {[%clk 0:01:24]}  Ke5 {[%clk 0:00:10]} 35. Kd2 {[%clk 0:01:25]}  Nxa2 {[%clk 0:00:07]} 36. Nxa2 {[%clk 0:01:24]}  Kxf5 {[%clk 0:00:08]} 37. Nc3 {[%clk 0:01:23]}  Kf4 {[%clk 0:00:07]} 38. Ke2 {[%clk 0:01:23]}  Kg3 {[%clk 0:00:07]} 39. Kf1 {[%clk 0:01:23]}  f5 {[%clk 0:00:07]} 40. Nb5 {[%clk 0:01:22]}  f4 {[%clk 0:00:07]} 41. Nxa7 {[%clk 0:01:21]}  h5 {[%clk 0:00:07]} 42. Nc8 {[%clk 0:01:18]}  h4 {[%clk 0:00:06]} 43. Kg1 {[%clk 0:01:17]}  f3 {[%clk 0:00:06]} 44. gxf3 {[%clk 0:01:17]}  Kxf3 {[%clk 0:00:07]} 45. Nxb6 {[%clk 0:01:16]}  Ke4 {[%clk 0:00:08]} 46. Na4 {[%clk 0:01:13]}  Kd4 {[%clk 0:00:09]} 47. Kh2 {[%clk 0:01:12]} 1-0


[Site "https://www.chess.com"]

[Event "Titled Tuesday Blitz May 4 2021"]
[White "Kostiukov, Alexandr"]
[Black "Elissalt Cardenas, Hector"]
[WhiteFideId "14108100"]
[BlackFideId "3500632"]
[WhiteElo "2240"]
[BlackElo "2230"]
[Result "0-1"]
[Round "08"]
[TimeControl "180+1"]
[Date "2021.05.04"]
[WhiteClock "0:00:02"]
[BlackClock "0:00:06"]

1. g3 {[%clk 0:03:00]}  d5 {[%clk 0:02:57]} 2. Bg2 {[%clk 0:03:00]}  c6 {[%clk 0:02:56]} 3. d3 {[%clk 0:03:01]}  h5 {[%clk 0:02:54]} 4. h4 {[%clk 0:03:00]}  e5 {[%clk 0:02:53]} 5. e4 {[%clk 0:02:59]}  Be6 {[%clk 0:02:49]} 6. Qe2 {[%clk 0:02:59]}  Bd6 {[%clk 0:02:46]} 7. Nh3 {[%clk 0:02:59]}  f6 {[%clk 0:02:45]} 8. O-O {[%clk 0:02:55]}  Ne7 {[%clk 0:02:44]} 9. Nc3 {[%clk 0:02:49]}  Qd7 {[%clk 0:02:42]} 10. Kh2 {[%clk 0:02:49]}  d4 {[%clk 0:02:26]} 11. Nd1 {[%clk 0:02:48]}  c5 {[%clk 0:02:26]} 12. f4 {[%clk 0:02:45]}  Bg4 {[%clk 0:02:26]} 13. Qe1 {[%clk 0:02:42]}  Nbc6 {[%clk 0:02:18]} 14. f5 {[%clk 0:02:40]}  Bxh3 {[%clk 0:01:43]} 15. Bxh3 {[%clk 0:02:40]}  O-O-O {[%clk 0:01:40]} 16. a4 {[%clk 0:02:31]}  Kb8 {[%clk 0:01:39]} 17. a5 {[%clk 0:02:28]}  Nb4 {[%clk 0:01:36]} 18. Rf2 {[%clk 0:02:21]}  Qb5 {[%clk 0:01:18]} 19. b3 {[%clk 0:02:04]}  Na6 {[%clk 0:01:14]} 20. Nb2 {[%clk 0:02:01]}  Nc7 {[%clk 0:01:11]} 21. Nc4 {[%clk 0:02:00]}  Qc6 {[%clk 0:01:10]} 22. Ba3 {[%clk 0:01:53]}  Nb5 {[%clk 0:01:09]} 23. Bb2 {[%clk 0:01:51]}  Bc7 {[%clk 0:01:07]} 24. b4 {[%clk 0:01:41]}  cxb4 {[%clk 0:01:03]} 25. Qxb4 {[%clk 0:01:40]}  Nc8 {[%clk 0:01:01]} 26. Rff1 {[%clk 0:01:30]}  Bd6 {[%clk 0:00:58]} 27. Qb3 {[%clk 0:01:21]}  Bc5 {[%clk 0:00:57]} 28. Rfb1 {[%clk 0:01:21]}  a6 {[%clk 0:00:57]} 29. Bc1 {[%clk 0:01:10]}  Ncd6 {[%clk 0:00:57]} 30. Bd2 {[%clk 0:01:07]}  Rc8 {[%clk 0:00:54]} 31. Nb6 {[%clk 0:00:56]}  Bxb6 {[%clk 0:00:53]} 32. axb6 {[%clk 0:00:57]}  Qxc2 {[%clk 0:00:52]} 33. Qb4 {[%clk 0:00:44]}  Qxd3 {[%clk 0:00:40]} 34. Rc1 {[%clk 0:00:36]}  Rc2 {[%clk 0:00:36]} 35. Rxc2 {[%clk 0:00:36]}  Qxc2 {[%clk 0:00:33]} 36. Rc1 {[%clk 0:00:32]}  Qd3 {[%clk 0:00:30]} 37. Bf1 {[%clk 0:00:25]}  Qf3 {[%clk 0:00:26]} 38. Bg2 {[%clk 0:00:18]}  Qe2 {[%clk 0:00:24]} 39. Rc7 {[%clk 0:00:17]}  Rc8 {[%clk 0:00:17]} 40. Qc5 {[%clk 0:00:17]}  Rxc7 {[%clk 0:00:16]} 41. bxc7+ {[%clk 0:00:17]}  Nxc7 {[%clk 0:00:16]} 42. Ba5 {[%clk 0:00:16]}  Ncb5 {[%clk 0:00:15]} 43. Bb6 {[%clk 0:00:11]}  Qc4 {[%clk 0:00:14]} 44. Bc7+ {[%clk 0:00:05]}  Ka8 {[%clk 0:00:12]} 45. Bxd6 {[%clk 0:00:03]}  Nxd6 {[%clk 0:00:10]} 46. Qxd6 {[%clk 0:00:03]}  d3 {[%clk 0:00:09]} 47. Qf8+ {[%clk 0:00:04]}  Ka7 {[%clk 0:00:09]} 48. Qxg7 {[%clk 0:00:04]}  Qc3 {[%clk 0:00:08]} 49. Qd7 {[%clk 0:00:05]}  d2 {[%clk 0:00:08]} 50. Kh3 {[%clk 0:00:05]}  Qc1 {[%clk 0:00:08]} 51. Bf3 {[%clk 0:00:05]}  Qc3 {[%clk 0:00:07]} 52. Kg2 {[%clk 0:00:02]}  Qe3 {[%clk 0:00:06]} 0-1


[Site "https://www.chess.com"]

[Event "Titled Tuesday Blitz May 4 2021"]
[White "Kriti Mayur Patel"]
[Black "Mohota, Nisha"]
[WhiteFideId "35061780"]
[BlackFideId "5004330"]
[WhiteElo "1212"]
[BlackElo "2117"]
[Result "0-1"]
[Round "08"]
[TimeControl "180+1"]
[Date "2021.05.04"]
[WhiteClock "0:00:35"]
[BlackClock "0:00:08"]

1. e4 {[%clk 0:03:00]}  e5 {[%clk 0:03:00]} 2. Nf3 {[%clk 0:03:00]}  Nf6 {[%clk 0:03:00]} 3. Nxe5 {[%clk 0:02:58]}  Nc6 {[%clk 0:03:00]} 4. Nxc6 {[%clk 0:02:57]}  dxc6 {[%clk 0:03:00]} 5. e5 {[%clk 0:02:56]}  Ne4 {[%clk 0:02:59]} 6. d4 {[%clk 0:02:52]}  Qh4 {[%clk 0:02:43]} 7. g3 {[%clk 0:02:35]}  Nxg3 {[%clk 0:02:43]} 8. fxg3 {[%clk 0:02:34]}  Qe4+ {[%clk 0:02:43]} 9. Qe2 {[%clk 0:02:28]}  Qxh1 {[%clk 0:02:43]} 10. Nc3 {[%clk 0:02:28]}  Bb4 {[%clk 0:02:37]} 11. Bd2 {[%clk 0:02:26]}  Bxc3 {[%clk 0:02:28]} 12. Bxc3 {[%clk 0:02:26]}  Bh3 {[%clk 0:02:15]} 13. O-O-O {[%clk 0:02:21]}  Bxf1 {[%clk 0:02:14]} 14. Rxf1 {[%clk 0:02:20]}  Qd5 {[%clk 0:02:14]} 15. Qf2 {[%clk 0:02:18]}  Qxa2 {[%clk 0:02:06]} 16. Bb4 {[%clk 0:02:14]}  O-O-O {[%clk 0:01:55]} 17. Qf5+ {[%clk 0:02:12]}  Kb8 {[%clk 0:01:53]} 18. c3 {[%clk 0:02:08]}  a5 {[%clk 0:01:38]} 19. Be7 {[%clk 0:02:07]}  Rde8 {[%clk 0:01:29]} 20. Bg5 {[%clk 0:02:04]}  f6 {[%clk 0:01:20]} 21. exf6 {[%clk 0:02:02]}  gxf6 {[%clk 0:01:13]} 22. Qxf6 {[%clk 0:01:57]}  Rhg8 {[%clk 0:00:52]} 23. Bh6 {[%clk 0:01:50]}  Re2 {[%clk 0:00:42]} 24. Bd2 {[%clk 0:01:03]}  Qa1+ {[%clk 0:00:39]} 25. Kc2 {[%clk 0:01:02]}  Qa4+ {[%clk 0:00:38]} 26. Kc1 {[%clk 0:00:57]}  Rge8 {[%clk 0:00:31]} 27. Qf4 {[%clk 0:00:53]}  Qb3 {[%clk 0:00:27]} 28. g4 {[%clk 0:00:50]}  a4 {[%clk 0:00:27]} 29. g5 {[%clk 0:00:42]}  a3 {[%clk 0:00:27]} 30. bxa3 {[%clk 0:00:42]}  Qxa3+ {[%clk 0:00:25]} 31. Kc2 {[%clk 0:00:40]}  Qa2+ {[%clk 0:00:24]} 32. Kd3 {[%clk 0:00:40]}  Rxd2+ {[%clk 0:00:19]} 33. Qxd2 {[%clk 0:00:39]}  Qa6+ {[%clk 0:00:17]} 34. c4 {[%clk 0:00:38]}  Qa3+ {[%clk 0:00:15]} 35. Kc2 {[%clk 0:00:37]}  Qa2+ {[%clk 0:00:13]} 36. Kd1 {[%clk 0:00:37]}  Qb1+ {[%clk 0:00:06]} 37. Qc1 {[%clk 0:00:35]}  Qd3+ {[%clk 0:00:06]} 38. Qd2 {[%clk 0:00:33]}  Qxf1+ {[%clk 0:00:07]} 39. Kc2 {[%clk 0:00:33]}  Re2 {[%clk 0:00:07]} 40. Qxe2 {[%clk 0:00:31]}  Qxe2+ {[%clk 0:00:08]} 41. Kb3 {[%clk 0:00:32]}  Qd3+ {[%clk 0:00:08]} 42. Kb4 {[%clk 0:00:33]}  Qxd4 {[%clk 0:00:08]} 43. Ka5 {[%clk 0:00:34]}  c5 {[%clk 0:00:08]} 44. g6 {[%clk 0:00:34]}  Qxc4 {[%clk 0:00:08]} 45. g7 {[%clk 0:00:35]}  Qb4# {[%clk 0:00:08]} 0-1


[Site "https://www.chess.com"]

[Event "Titled Tuesday Blitz May 4 2021"]
[White "Krivonosov, Oleg"]
[Black "Gelman, Alexander"]
[WhiteFideId "11600349"]
[BlackFideId "4118316"]
[WhiteElo "2469"]
[BlackElo "2375"]
[Result "1/2-1/2"]
[Round "08"]
[TimeControl "180+1"]
[Date "2021.05.04"]
[WhiteClock "0:02:29"]
[BlackClock "0:02:44"]

1. Nf3 {[%clk 0:03:00]}  c5 {[%clk 0:03:00]} 2. c4 {[%clk 0:03:00]}  Nf6 {[%clk 0:03:00]} 3. Nc3 {[%clk 0:02:59]}  e6 {[%clk 0:02:59]} 4. g3 {[%clk 0:02:58]}  a6 {[%clk 0:02:58]} 5. Bg2 {[%clk 0:02:58]}  d6 {[%clk 0:02:59]} 6. O-O {[%clk 0:02:56]}  Be7 {[%clk 0:02:59]} 7. d4 {[%clk 0:02:55]}  cxd4 {[%clk 0:02:59]} 8. Nxd4 {[%clk 0:02:54]}  O-O {[%clk 0:03:00]} 9. b3 {[%clk 0:02:54]}  Qc7 {[%clk 0:03:00]} 10. Bb2 {[%clk 0:02:54]}  Nbd7 {[%clk 0:03:01]} 11. Rc1 {[%clk 0:02:54]}  Ne5 {[%clk 0:03:01]} 12. e3 {[%clk 0:02:53]}  Bd7 {[%clk 0:03:01]} 13. Qe2 {[%clk 0:02:53]}  Rac8 {[%clk 0:03:00]} 14. Rfd1 {[%clk 0:02:52]}  Rfd8 {[%clk 0:02:57]} 15. h3 {[%clk 0:02:51]}  Qb8 {[%clk 0:02:56]} 16. Nf3 {[%clk 0:02:45]}  Ng6 {[%clk 0:02:54]} 17. Nd4 {[%clk 0:02:40]}  Ne5 {[%clk 0:02:53]} 18. Nf3 {[%clk 0:02:39]}  Ng6 {[%clk 0:02:53]} 19. Nd4 {[%clk 0:02:39]}  h6 {[%clk 0:02:47]} 20. Ne4 {[%clk 0:02:34]}  Ne8 {[%clk 0:02:44]} 21. Nc3 {[%clk 0:02:30]}  Nf6 {[%clk 0:02:43]} 22. Ne4 {[%clk 0:02:29]}  Ne8 {[%clk 0:02:44]} 23. Nc3 {[%clk 0:02:29]}  Nf6 {[%clk 0:02:44]} 1/2-1/2


[Site "https://www.chess.com"]